fUSD/lending_fUSD_20250629
["ID","MTS","AMOUNT","RATE_DAILY","PERIOD"]
[368525528,1751195470955,-490.0,0.00028219,3]
[368525529,1751195470965,-1892.33,0.00028219,3]
[368525530,1751195470975,-3862.52,0.00028219,3]
[368525531,1751195470984,-943.0,0.00028219,3]
[368525532,1751195470994,-490.0,0.00028219,3]
[368525533,1751195471005,-1500.56,0.00028219,3]
[368525534,1751195471015,-1722.76,0.00028219,3]
[368525535,1751195471025,-490.0,0.00028219,3]
[368525536,1751195471035,-1385.63,0.00028219,3]
[368525537,1751195471046,-690.18,0.00028219,3]
[368525538,1751195471056,-1738.51,0.00028219,3]
[368525539,1751195471065,-490.0,0.00028219,3]
[368525540,1751195471074,-893.12,0.00028219,3]
[368525541,1751195471085,-490.0,0.00028219,3]
[368525542,1751195471094,-490.0,0.00028219,3]
[368525543,1751195471104,-3272.52,0.00028219,3]
[368525544,1751195471115,-490.0,0.00028219,3]
[368525545,1751195471125,-490.0,0.00028219,3]
[368525546,1751195471135,-884.39,0.00028219,3]
[368525547,1751195471145,-1232.52,0.00028219,3]
[368525548,1751195471156,-490.0,0.00028219,3]
[368525549,1751195471165,-2520.33,0.00028219,3]
[368525550,1751195471174,-8290.98,0.00028219,3]
[368525551,1751195471184,-490.0,0.00028219,3]
[368525552,1751195471194,-2639.97,0.00028219,3]
[368525553,1751195471203,-1073.7,0.00028219,3]
[368525554,1751195471213,-490.0,0.00028219,3]
[368525555,1751195471222,-1075.68,0.00028219,3]
[368525556,1751195471232,-4185.34,0.00028219,3]
[368525557,1751195471241,-490.0,0.00028219,3]
[368525558,1751195471251,-490.0,0.00028219,3]
[368525559,1751195471261,-490.0,0.00028219,3]
[368525560,1751195471272,-506.8,0.00028219,3]
[368525561,1751195471282,-81101.22,0.00028219,3]
[368525562,1751195471291,-1000.0,0.00028221,5]
[368525563,1751195471301,-1000.0,0.00028221,5]
[368525564,1751195471310,-1000.0,0.00028221,5]
[368525565,1751195471320,-822.39111784,0.00028279,18]
[368525566,1751195471333,-151.0,0.00028348,2]
[368525567,1751195471342,-611.63138359,0.00028393,2]
[368525568,1751195471351,-19349.20097076,0.00028393,2]
[368525569,1751195471362,-294.37143798,0.00028393,2]
[368525570,1751195471371,-2077.71271227,0.00028393,2]
[368525571,1751195471381,-1500.0,0.00028468,5]
[368525572,1751195471391,-517.29550646,0.00028468,5]
[368525573,1751195471400,-1000.0,0.00028468,5]
[368525574,1751195471410,-490.0,0.00028493,3]
[368525575,1751195471419,-490.0,0.00028493,3]
[368525576,1751195471428,-490.0,0.00028493,3]
[368525577,1751195471438,-490.0,0.00028493,3]
[368525578,1751195471447,-572.57,0.00028493,3]
[368525579,1751195471456,-490.0,0.00028493,3]
[368525580,1751195471466,-490.0,0.00028493,3]
[368525581,1751195471476,-828.1,0.00028493,3]
[368525582,1751195471486,-490.0,0.00028493,3]
[368525583,1751195471495,-490.0,0.00028493,3]
[368525584,1751195471505,-519.91569853,0.00028493,3]
[368525585,1751195471514,-490.0,0.00028493,3]
[368525586,1751195471524,-490.0,0.00028493,3]
[368525587,1751195471533,-490.0,0.00028493,3]
[368525588,1751195471543,-490.0,0.00028493,3]
[368525589,1751195471552,-472.14672884,0.00028493,3]
[368525590,1751195471562,-490.0,0.00028493,3]
[368525591,1751195471571,-490.0,0.00028493,3]
[368525592,1751195471581,-490.0,0.00028493,3]
[368525593,1751195471590,-490.0,0.00028493,3]
[368525594,1751195471600,-490.0,0.00028493,3]
[368525595,1751195471609,-490.0,0.00028493,3]
[368525596,1751195471618,-496.37681411,0.00028493,3]
[368525597,1751195471627,-490.0,0.00028493,3]
[368525598,1751195471636,-490.0,0.00028493,3]
[368525599,1751195471646,-490.0,0.00028493,3]
[368525600,1751195471656,-490.0,0.00028493,3]
[368525601,1751195471665,-736.21,0.00028493,3]
[368525602,1751195471674,-490.0,0.00028493,3]
[368525603,1751195471684,-490.0,0.00028493,3]
[368525604,1751195471695,-490.0,0.00028493,3]
[368525605,1751195471704,-490.0,0.00028493,3]
[368525606,1751195471715,-490.0,0.00028493,3]
[368525607,1751195471726,-498.5,0.00028493,3]
[368525608,1751195471735,-490.0,0.00028493,3]
[368525609,1751195471745,-490.0,0.00028493,3]
[368525610,1751195471755,-490.0,0.00028493,3]
[368525611,1751195471765,-490.0,0.00028493,3]
[368525612,1751195471774,-490.0,0.00028493,3]
[368525613,1751195471783,-490.0,0.00028493,3]
[368525614,1751195471793,-490.0,0.00028493,3]
[368525615,1751195471802,-490.0,0.00028493,3]
[368525616,1751195471811,-490.0,0.00028493,3]
[368525617,1751195471821,-490.0,0.00028493,3]
[368525618,1751195471831,-490.0,0.00028493,3]
[368525619,1751195471840,-490.0,0.00028493,3]
[368525620,1751195471851,-490.0,0.00028493,3]
[368525621,1751195471861,-490.0,0.00028493,3]
[368525622,1751195471872,-490.0,0.00028493,3]
[368525623,1751195471882,-490.0,0.00028493,3]
[368525624,1751195471892,-490.0,0.00028493,3]
[368525625,1751195471901,-490.0,0.00028493,3]
[368525626,1751195471911,-490.0,0.00028493,3]
[368525627,1751195471921,-490.0,0.00028493,3]
[368525628,1751195471931,-490.0,0.00028493,3]
[368525629,1751195471940,-490.0,0.00028493,3]
[368525630,1751195471952,-1266.21,0.00028493,3]
[368525631,1751195471962,-490.0,0.00028493,3]
[368525632,1751195471971,-490.0,0.00028493,3]
[368525633,1751195471981,-498.46921542,0.00028493,3]
[368525634,1751195471990,-490.0,0.00028493,3]
[368525635,1751195472000,-490.0,0.00028493,3]
[368525636,1751195472009,-690.25,0.00028493,3]
[368525637,1751195472019,-490.0,0.00028493,3]
[368525638,1751195472028,-598.13,0.00028493,3]
[368525639,1751195472037,-523.97,0.00028493,3]
[368525640,1751195472046,-490.0,0.00028493,3]
[368525641,1751195472056,-1113.04,0.00028493,3]
[368525642,1751195472065,-679.56,0.00028493,3]
[368525643,1751195472074,-490.0,0.00028493,3]
[368525644,1751195472083,-490.0,0.00028493,3]
[368525645,1751195472092,-490.0,0.00028493,3]
[368525646,1751195472102,-490.0,0.00028493,3]
[368525647,1751195472111,-594.99,0.00028493,3]
[368525648,1751195472120,-490.0,0.00028493,3]
[368525649,1751195472129,-490.0,0.00028493,3]
[368525650,1751195472138,-532.19200476,0.00028493,3]
[368525651,1751195472147,-490.0,0.00028493,3]
[368525652,1751195472156,-490.0,0.00028493,3]
[368525653,1751195472165,-490.0,0.00028493,3]
[368525654,1751195472175,-1446.76,0.00028493,3]
[368525655,1751195472184,-490.0,0.00028493,3]
[368525656,1751195472193,-490.0,0.00028493,3]
[368525657,1751195472203,-490.0,0.00028493,3]
[368525658,1751195472213,-490.0,0.00028493,3]
[368525659,1751195472223,-490.0,0.00028493,3]
[368525660,1751195472233,-490.0,0.00028493,3]
[368525661,1751195472242,-663.42,0.00028493,3]
[368525662,1751195472251,-490.0,0.00028493,3]
[368525663,1751195472336,-1256.21,0.00028493,3]
[368525664,1751195472349,-490.0,0.00028493,3]
[368525665,1751195472359,-490.0,0.00028493,3]
[368525666,1751195472371,-490.0,0.00028493,3]
[368525667,1751195472380,-1418.54,0.00028493,3]
[368525668,1751195472391,-490.0,0.00028493,3]
[368525669,1751195472402,-490.0,0.00028493,3]
[368525670,1751195472411,-490.0,0.00028493,3]
[368525671,1751195472420,-490.0,0.00028493,3]
[368525672,1751195472429,-490.0,0.00028493,3]
[368525673,1751195472438,-490.0,0.00028493,3]
[368525674,1751195472447,-490.0,0.00028493,3]
[368525675,1751195472456,-490.0,0.00028493,3]
[368525676,1751195472465,-490.0,0.00028493,3]
[368525677,1751195472475,-496.37,0.00028493,3]
[368525678,1751195472484,-1013.41,0.00028493,3]
[368525679,1751195472493,-490.0,0.00028493,3]
[368525680,1751195472503,-1113.41,0.00028493,3]
[368525681,1751195472512,-490.0,0.00028493,3]
[368525682,1751195472521,-490.0,0.00028493,3]
[368525683,1751195472530,-643.24,0.00028493,3]
[368525684,1751195472539,-490.0,0.00028493,3]
[368525685,1751195472548,-490.0,0.00028493,3]
[368525686,1751195472557,-490.0,0.00028493,3]
[368525687,1751195472567,-490.0,0.00028493,3]
[368525688,1751195472576,-490.0,0.00028493,3]
[368525689,1751195472585,-490.0,0.00028493,3]
[368525690,1751195472595,-490.0,0.00028493,3]
[368525691,1751195472604,-827.85,0.00028493,3]
[368525692,1751195472613,-1223.98,0.00028493,3]
[368525693,1751195472622,-560.05,0.00028493,3]
[368525694,1751195472632,-815.38,0.00028493,3]
[368525695,1751195472641,-745.76,0.00028493,3]
[368525696,1751195472650,-566.05,0.00028493,3]
[368525697,1751195472659,-490.0,0.00028493,3]
[368525698,1751195472669,-568.47,0.00028493,3]
[368525699,1751195472678,-490.0,0.00028493,3]
[368525700,1751195472687,-1242.08,0.00028493,3]
[368525701,1751195472696,-490.0,0.00028493,3]
[368525702,1751195472705,-957.14,0.00028493,3]
[368525703,1751195472714,-490.0,0.00028493,3]
[368525704,1751195472723,-490.0,0.00028493,3]
[368525705,1751195472732,-490.0,0.00028493,3]
[368525706,1751195472741,-490.0,0.00028493,3]
[368525707,1751195472751,-490.0,0.00028493,3]
[368525708,1751195472761,-532.08,0.00028493,3]
[368525709,1751195472770,-490.0,0.00028493,3]
[368525710,1751195472779,-490.0,0.00028493,3]
[368525711,1751195472788,-1422.6,0.00028493,3]
[368525712,1751195472797,-490.0,0.00028493,3]
[368525713,1751195472806,-490.0,0.00028493,3]
[368525714,1751195472815,-490.0,0.00028493,3]
[368525715,1751195472824,-490.0,0.00028493,3]
[368525716,1751195472833,-756.27,0.00028493,3]
[368525717,1751195472842,-1401.37,0.00028493,3]
[368525718,1751195472852,-915.4,0.00028493,3]
[368525719,1751195472861,-490.0,0.00028493,3]
[368525720,1751195472871,-490.0,0.00028493,3]
[368525721,1751195472880,-1294.27,0.00028493,3]
[368525722,1751195472889,-759.55,0.00028493,3]
[368525723,1751195472898,-598.76,0.00028493,3]
[368525724,1751195472907,-1087.93,0.00028493,3]
[368525725,1751195472917,-490.0,0.00028493,3]
[368525726,1751195472927,-490.0,0.00028493,3]
[368525727,1751195472936,-490.0,0.00028493,3]
[368525728,1751195472946,-490.0,0.00028493,3]
[368525729,1751195472955,-490.0,0.00028493,3]
[368525730,1751195472964,-490.0,0.00028493,3]
[368525731,1751195472973,-300.559835,0.00028493,3]
[368525732,1751195472981,-1267.05,0.00028493,3]
[368525733,1751195472991,-525.72,0.00028493,3]
[368525734,1751195473000,-490.0,0.00028493,3]
[368525735,1751195473009,-490.0,0.00028493,3]
[368525736,1751195473018,-1134.9,0.00028493,3]
[368525737,1751195473027,-1224.95,0.00028493,3]
[368525738,1751195473036,-493.99,0.00028493,3]
[368525739,1751195473045,-490.0,0.00028493,3]
[368525740,1751195473056,-490.0,0.00028493,3]
[368525741,1751195473066,-571.79,0.00028493,3]
[368525742,1751195473075,-490.0,0.00028493,3]
[368525743,1751195473084,-490.0,0.00028493,3]
[368525744,1751195473094,-490.0,0.00028493,3]
[368525745,1751195473105,-735.44,0.00028493,3]
[368525746,1751195473116,-549.79,0.00028493,3]
[368525747,1751195473127,-490.0,0.00028493,3]
[368525748,1751195473136,-738.46,0.00028493,3]
[368525749,1751195473147,-954.67,0.00028493,3]
[368525750,1751195473157,-490.0,0.00028493,3]
[368525751,1751195473168,-1388.19,0.00028493,3]
[368525752,1751195473178,-843.616844,0.00028493,3]
[368525753,1751195473189,-490.0,0.00028493,3]
[368525754,1751195473199,-490.0,0.00028493,3]
[368525755,1751195473208,-490.0,0.00028493,3]
[368525756,1751195473218,-490.0,0.00028493,3]
[368525757,1751195473228,-490.0,0.00028493,3]
[368525758,1751195473237,-729.8,0.00028493,3]
[368525759,1751195473246,-292.491065,0.00028493,3]
[368525760,1751195473256,-717.63,0.00028493,3]
[368525761,1751195473267,-618.02,0.00028493,3]
[368525762,1751195473276,-590.77114141,0.00028493,3]
[368525763,1751195473284,-490.0,0.00028493,3]
[368525764,1751195473293,-779.17,0.00028493,3]
[368525765,1751195473303,-490.49,0.00028493,3]
[368525766,1751195473312,-490.0,0.00028493,3]
[368525767,1751195473326,-490.0,0.00028493,3]
[368525768,1751195473336,-490.46,0.00028493,3]
[368525769,1751195473345,-490.0,0.00028493,3]
[368525770,1751195473355,-1183.749927,0.00028493,3]
[368525771,1751195473364,-701.72,0.00028493,3]
[368525772,1751195473373,-490.0,0.00028493,3]
[368525773,1751195473382,-490.0,0.00028493,3]
[368525774,1751195473391,-1237.98,0.00028493,3]
[368525775,1751195473400,-1063.67,0.00028493,3]
[368525776,1751195473409,-663.95,0.00028493,3]
[368525777,1751195473418,-862.32,0.00028493,3]
[368525778,1751195473427,-490.0,0.00028493,3]
[368525779,1751195473436,-827.18,0.00028493,3]
[368525780,1751195473446,-490.0,0.00028493,3]
[368525781,1751195473456,-490.0,0.00028493,3]
[368525782,1751195473467,-490.0,0.00028493,3]
[368525783,1751195473476,-823.41,0.00028493,3]
[368525784,1751195473485,-490.0,0.00028493,3]
[368525785,1751195473494,-668.76,0.00028493,3]
[368525786,1751195473503,-547.47,0.00028493,3]
[368525787,1751195473513,-748.67,0.00028493,3]
[368525788,1751195473522,-490.0,0.00028493,3]
[368525789,1751195473531,-490.0,0.00028493,3]
[368525790,1751195473541,-1401.904447,0.00028493,3]
[368525791,1751195473550,-490.0,0.00028493,3]
[368525792,1751195473559,-490.0,0.00028493,3]
[368525793,1751195473568,-588.25,0.00028493,3]
[368525794,1751195473578,-1344.91,0.00028493,3]
[368525795,1751195473587,-490.0,0.00028493,3]
[368525796,1751195473597,-163.3207489,0.00028493,3]
[368525797,1751195473606,-688.18,0.00028493,3]
[368525798,1751195473615,-490.0,0.00028493,3]
[368525799,1751195473624,-918.01,0.00028493,3]
[368525800,1751195473636,-490.0,0.00028493,3]
[368525801,1751195473645,-300.0,0.00028493,3]
[368525802,1751195473655,-606.16,0.00028493,3]
[368525803,1751195473664,-490.0,0.00028493,3]
[368525804,1751195473673,-504.36,0.00028493,3]
[368525805,1751195473682,-490.0,0.00028493,3]
[368525806,1751195473691,-860.61,0.00028493,3]
[368525807,1751195473700,-490.0,0.00028493,3]
[368525808,1751195473709,-490.0,0.00028493,3]
[368525809,1751195473718,-492.65,0.00028493,3]
[368525810,1751195473727,-1029.14,0.00028493,3]
[368525811,1751195473737,-490.95,0.00028493,3]
[368525812,1751195473746,-490.0,0.00028493,3]
[368525813,1751195473758,-490.0,0.00028493,3]
[368525814,1751195473767,-490.0,0.00028493,3]
[368525815,1751195473776,-879.43,0.00028493,3]
[368525816,1751195473786,-576.42,0.00028493,3]
[368525817,1751195473795,-490.0,0.00028493,3]
[368525818,1751195473804,-490.0,0.00028493,3]
[368525819,1751195473813,-490.0,0.00028493,3]
[368525820,1751195473823,-593.25,0.00028493,3]
[368525821,1751195473831,-448.1149645,0.00028493,3]
[368525822,1751195473840,-537.32,0.00028493,3]
[368525823,1751195473849,-1231.36,0.00028493,3]
[368525824,1751195473858,-1062.64,0.00028493,3]
[368525825,1751195473867,-603.18,0.00028493,3]
[368525826,1751195473876,-587.36,0.00028493,3]
[368525827,1751195473885,-576.03,0.00028493,3]
[368525828,1751195473896,-490.0,0.00028493,3]
[368525829,1751195473905,-209.89837446,0.00028493,3]
[368525830,1751195473914,-490.0,0.00028493,3]
[368525831,1751195473923,-618.5,0.00028493,3]
[368525832,1751195473933,-996.14,0.00028493,3]
[368525833,1751195473943,-588.38,0.00028493,3]
[368525834,1751195473952,-490.0,0.00028493,3]
[368525835,1751195473961,-559.62,0.00028493,3]
[368525836,1751195473969,-593.04,0.00028493,3]
[368525837,1751195473979,-543.61,0.00028493,3]
[368525838,1751195473988,-594.32,0.00028493,3]
[368525839,1751195473998,-815.71,0.00028493,3]
[368525840,1751195474007,-490.0,0.00028493,3]
[368525841,1751195474016,-490.0,0.00028493,3]
[368525842,1751195474025,-490.0,0.00028493,3]
[368525843,1751195474034,-490.0,0.00028493,3]
[368525844,1751195474043,-496.77,0.00028493,3]
[368525845,1751195474052,-490.0,0.00028493,3]
[368525846,1751195474063,-630.45,0.00028493,3]
[368525847,1751195474073,-490.0,0.00028493,3]
[368525848,1751195474082,-612.62,0.00028493,3]
[368525849,1751195474092,-490.0,0.00028493,3]
[368525850,1751195474101,-490.0,0.00028493,3]
[368525851,1751195474110,-734.99,0.00028493,3]
[368525852,1751195474120,-490.0,0.00028493,3]
[368525853,1751195474129,-941.86,0.00028493,3]
[368525854,1751195474139,-606.81,0.00028493,3]
[368525855,1751195474151,-490.0,0.00028493,3]
[368525856,1751195474162,-490.0,0.00028493,3]
[368525857,1751195474171,-490.0,0.00028493,3]
[368525858,1751195474181,-490.0,0.00028493,3]
[368525859,1751195474190,-398.05452339,0.00028493,3]
[368525860,1751195474199,-1147.39,0.00028493,3]
[368525861,1751195474208,-490.0,0.00028493,3]
[368525862,1751195474218,-534.75,0.00028493,3]
[368525863,1751195474227,-768.88,0.00028493,3]
[368525864,1751195474237,-501.48,0.00028493,3]
[368525865,1751195474246,-150.47987166,0.00028493,3]
[368525866,1751195474255,-765.22,0.00028493,3]
[368525867,1751195474264,-490.0,0.00028493,3]
[368525868,1751195474276,-490.0,0.00028493,3]
[368525869,1751195474285,-624.11,0.00028493,3]
[368525870,1751195474294,-490.0,0.00028493,3]
[368525871,1751195474302,-490.0,0.00028493,3]
[368525872,1751195474311,-518.02,0.00028493,3]
[368525873,1751195474321,-490.0,0.00028493,3]
[368525874,1751195474332,-490.0,0.00028493,3]
[368525875,1751195474342,-691.65,0.00028493,3]
[368525876,1751195474351,-490.0,0.00028493,3]
[368525877,1751195474360,-490.0,0.00028493,3]
[368525878,1751195474370,-490.0,0.00028493,3]
[368525879,1751195474379,-1554.34,0.00028493,3]
[368525880,1751195474388,-536.67,0.00028493,3]
[368525881,1751195474397,-490.0,0.00028493,3]
[368525882,1751195474407,-490.0,0.00028493,3]
[368525883,1751195474417,-708.27,0.00028493,3]
[368525884,1751195474426,-1504.15,0.00028493,3]
[368525885,1751195474435,-490.0,0.00028493,3]
[368525886,1751195474444,-490.0,0.00028493,3]
[368525887,1751195474454,-490.0,0.00028493,3]
[368525888,1751195474462,-516.87,0.00028493,3]
[368525889,1751195474471,-490.0,0.00028493,3]
[368525890,1751195474481,-490.0,0.00028493,3]
[368525891,1751195474490,-490.0,0.00028493,3]
[368525892,1751195474501,-490.0,0.00028493,3]
[368525893,1751195474511,-490.0,0.00028493,3]
[368525894,1751195474520,-490.0,0.00028493,3]
[368525895,1751195474530,-604.89,0.00028493,3]
[368525896,1751195474539,-490.0,0.00028493,3]
[368525897,1751195474549,-1638.76,0.00028493,3]
[368525898,1751195474559,-490.0,0.00028493,3]
[368525899,1751195474569,-490.0,0.00028493,3]
[368525900,1751195474578,-256.02200508,0.00028493,3]
[368525901,1751195474589,-265.75136105,0.00028493,3]
[368525902,1751195474598,-490.0,0.00028493,3]
[368525903,1751195474607,-1217.95,0.00028493,3]
[368525904,1751195474616,-590.89,0.00028493,3]
[368525905,1751195474625,-490.0,0.00028493,3]
[368525906,1751195474635,-490.0,0.00028493,3]
[368525907,1751195474644,-528.4,0.00028493,3]
[368525908,1751195474652,-498.25,0.00028493,3]
[368525909,1751195474662,-1047.55,0.00028493,3]
[368525910,1751195474671,-932.64,0.00028493,3]
[368525911,1751195474680,-1535.93,0.00028493,3]
[368525912,1751195474689,-490.0,0.00028493,3]
[368525913,1751195474698,-1410.37,0.00028493,3]
[368525914,1751195474707,-857.63,0.00028493,3]
[368525915,1751195474716,-490.0,0.00028493,3]
[368525916,1751195474725,-490.0,0.00028493,3]
[368525917,1751195474734,-490.0,0.00028493,3]
[368525918,1751195474743,-764.97,0.00028493,3]
[368525919,1751195474753,-1226.51,0.00028493,3]
[368525920,1751195474762,-719.95,0.00028493,3]
[368525921,1751195474771,-979.74,0.00028493,3]
[368525922,1751195474780,-991.19,0.00028493,3]
[368525923,1751195474791,-490.0,0.00028493,3]
[368525924,1751195474801,-490.0,0.00028493,3]
[368525925,1751195474811,-892.18,0.00028493,3]
[368525926,1751195474821,-490.0,0.00028493,3]
[368525927,1751195474830,-490.0,0.00028493,3]
[368525928,1751195474840,-490.0,0.00028493,3]
[368525929,1751195474849,-523.71,0.00028493,3]
[368525930,1751195474859,-490.0,0.00028493,3]
[368525931,1751195474868,-490.0,0.00028493,3]
[368525932,1751195474877,-490.0,0.00028493,3]
[368525933,1751195474886,-490.0,0.00028493,3]
[368525934,1751195474896,-490.0,0.00028493,3]
[368525935,1751195474905,-1618.13,0.00028493,3]
[368525936,1751195474914,-1261.23,0.00028493,3]
[368525937,1751195474924,-662.39,0.00028493,3]
[368525938,1751195474933,-533.43,0.00028493,3]
[368525939,1751195474942,-490.0,0.00028493,3]
[368525940,1751195474953,-851.98,0.00028493,3]
[368525941,1751195474962,-3244.07,0.00028493,3]
[368525942,1751195474972,-490.0,0.00028493,3]
[368525943,1751195474982,-490.0,0.00028493,3]
[368525944,1751195474992,-490.0,0.00028493,3]
[368525945,1751195475001,-490.0,0.00028493,3]
[368525946,1751195475011,-490.0,0.00028493,3]
[368525947,1751195475021,-490.0,0.00028493,3]
[368525948,1751195475031,-650.15,0.00028493,3]
[368525949,1751195475040,-643.65,0.00028493,3]
[368525950,1751195475050,-588.08,0.00028493,3]
[368525951,1751195475060,-793.06,0.00028493,3]
[368525952,1751195475069,-1494.92,0.00028493,3]
[368525953,1751195475078,-11062.2,0.00028493,3]
[368525954,1751195475088,-650.49,0.00028493,3]
[368525955,1751195475098,-1369.42,0.00028493,3]
[368525956,1751195475108,-490.0,0.00028493,3]
[368525957,1751195475117,-490.0,0.00028493,3]
[368525958,1751195475126,-490.0,0.00028493,3]
[368525959,1751195475136,-490.0,0.00028493,3]
[368525960,1751195475145,-992.98,0.00028493,3]
[368525961,1751195475155,-2865.08,0.00028493,3]
[368525962,1751195475164,-490.0,0.00028493,3]
[368525963,1751195475174,-490.0,0.00028493,3]
[368525964,1751195475183,-490.0,0.00028493,3]
[368525965,1751195475192,-1255.19,0.00028493,3]
[368525966,1751195475201,-1048.51,0.00028493,3]
[368525967,1751195475212,-895.06,0.00028493,3]
[368525968,1751195475226,-1140.15,0.00028493,3]
[368525969,1751195475236,-1475.7,0.00028493,3]
[368525970,1751195475246,-1098.84,0.00028493,3]
[368525971,1751195475255,-689.9,0.00028493,3]
[368525972,1751195475264,-509.89,0.00028493,3]
[368525973,1751195475274,-846.61,0.00028493,3]
[368525974,1751195475284,-490.0,0.00028493,3]
[368525975,1751195475294,-800.75,0.00028493,3]
[368525976,1751195475304,-490.0,0.00028493,3]
[368525977,1751195475313,-1724.34,0.00028493,3]
[368525978,1751195475323,-839.61,0.00028493,3]
[368525979,1751195475334,-1838.21,0.00028493,3]
[368525980,1751195475343,-490.0,0.00028493,3]
[368525981,1751195475352,-490.0,0.00028493,3]
[368525982,1751195475361,-1420.15,0.00028493,3]
[368525983,1751195475371,-490.0,0.00028493,3]
[368525984,1751195475380,-511.65,0.00028493,3]
[368525985,1751195475389,-1365.53,0.00028493,3]
[368525986,1751195475399,-738.89,0.00028493,3]
[368525987,1751195475408,-1126.33,0.00028493,3]
[368525988,1751195475418,-490.0,0.00028493,3]
[368525989,1751195475427,-753.94,0.00028493,3]
[368525990,1751195475436,-4179.4,0.00028493,3]
[368525991,1751195475445,-490.0,0.00028493,3]
[368525992,1751195475454,-2082.18,0.00028493,3]
[368525993,1751195475463,-3115.11,0.00028493,3]
[368525994,1751195475472,-490.0,0.00028493,3]
[368525995,1751195475483,-807.19,0.00028493,3]
[368525996,1751195475492,-1049.11,0.00028493,3]
[368525997,1751195475502,-740.57,0.00028493,3]
[368525998,1751195475514,-490.0,0.00028493,3]
[368525999,1751195475525,-490.0,0.00028493,3]
[368526000,1751195475535,-1044.97,0.00028493,3]
[368526001,1751195475544,-490.0,0.00028493,3]
[368526002,1751195475554,-1018.69,0.00028493,3]
[368526003,1751195475564,-1329.73,0.00028493,3]
[368526004,1751195475573,-664.26,0.00028493,3]
[368526005,1751195475583,-765.79,0.00028493,3]
[368526006,1751195475592,-1231.21,0.00028493,3]
[368526007,1751195475602,-5898.08,0.00028493,3]
[368526008,1751195475613,-1354.66,0.00028493,3]
[368526009,1751195475622,-801.57,0.00028493,3]
[368526010,1751195475632,-678.52,0.00028493,3]
[368526011,1751195475641,-490.0,0.00028493,3]
[368526012,1751195475651,-490.0,0.00028493,3]
[368526013,1751195475660,-728.11,0.00028493,3]
[368526014,1751195475669,-490.0,0.00028493,3]
[368526015,1751195475678,-490.0,0.00028493,3]
[368526016,1751195475689,-853.69,0.00028493,3]
[368526017,1751195475699,-2091.4,0.00028493,3]
[368526018,1751195475711,-1560.41,0.00028493,3]
[368526019,1751195475720,-490.0,0.00028493,3]
[368526020,1751195475731,-898.14,0.00028493,3]
[368526021,1751195475741,-490.0,0.00028493,3]
[368526022,1751195475751,-490.0,0.00028493,3]
[368526023,1751195475761,-751.28,0.00028493,3]
[368526024,1751195475770,-490.0,0.00028493,3]
[368526025,1751195475779,-1923.3,0.00028493,3]
[368526026,1751195475789,-1248.49,0.00028493,3]
[368526027,1751195475798,-824.08,0.00028493,3]